[Event "Early-Titled-Tuesday-Blitz-June-18-2024"]
[Site "Chess.com"]
[Date "2024.06.18"]
[Round "4"]
[White "secrethawk1"]
[Black "koncheto"]
[Result "0-1"]
[WhiteElo "2417"]
[BlackElo "2640"]
[TimeControl "180+1"]
[EndTime "8:41:55 PDT"]
[Termination "koncheto won by resignation"]

1. d4 {[%clk 0:03:00.9]} 1... Nf6 {[%clk 0:02:59.3]} 2. Bf4 {[%clk 0:02:56.4]}
2... e6 {[%clk 0:02:57]} 3. e3 {[%clk 0:02:56.7]} 3... c5 {[%clk 0:02:56.7]} 4.
c3 {[%clk 0:02:56.3]} 4... d5 {[%clk 0:02:55.9]} 5. Nd2 {[%clk 0:02:56.3]} 5...
Bd6 {[%clk 0:02:55.7]} 6. Bxd6 {[%clk 0:02:55.3]} 6... Qxd6 {[%clk 0:02:55.9]}
7. Ngf3 {[%clk 0:02:55.9]} 7... Nbd7 {[%clk 0:02:52.3]} 8. Bd3 {[%clk
0:02:55.8]} 8... O-O {[%clk 0:02:50.7]} 9. O-O {[%clk 0:02:55.4]} 9... e5 {[%clk
0:02:45.8]} 10. dxe5 {[%clk 0:02:56.3]} 10... Nxe5 {[%clk 0:02:46.3]} 11. Nxe5
{[%clk 0:02:57.2]} 11... Qxe5 {[%clk 0:02:47.2]} 12. Nf3 {[%clk 0:02:57.6]}
12... Qe7 {[%clk 0:02:47.4]} 13. c4 {[%clk 0:02:57.7]} 13... Be6 {[%clk
0:02:35.3]} 14. Qc2 {[%clk 0:02:50.9]} 14... Rad8 {[%clk 0:02:19.1]} 15. Rad1
{[%clk 0:02:45.2]} 15... b6 {[%clk 0:02:12.1]} 16. Ng5 {[%clk 0:02:23.9]} 16...
h6 {[%clk 0:02:06.9]} 17. Nxe6 {[%clk 0:02:22]} 17... Qxe6 {[%clk 0:02:07.8]}
18. cxd5 {[%clk 0:02:21.2]} 18... Nxd5 {[%clk 0:02:03.5]} 19. Bc4 {[%clk
0:02:18.2]} 19... Nb4 {[%clk 0:01:32.2]} 20. Qb3 {[%clk 0:01:58.8]} 20... Qf6
{[%clk 0:01:29.6]} 21. a3 {[%clk 0:01:54.1]} 21... Nc6 {[%clk 0:01:27.6]} 22.
Bd5 {[%clk 0:01:53.9]} 22... Ne5 {[%clk 0:01:03.6]} 23. Qa4 {[%clk 0:01:49]}
23... Qe7 {[%clk 0:00:46.8]} 24. Qe4 {[%clk 0:01:40.6]} 24... Kh8 {[%clk
0:00:37.1]} 25. Bb3 {[%clk 0:01:28.5]} 25... Qf6 {[%clk 0:00:32.5]} 26. f4
{[%clk 0:01:18.7]} 26... Ng4 {[%clk 0:00:26.1]} 27. Qf3 {[%clk 0:01:12.4]} 27...
Qxb2 {[%clk 0:00:13.9]} 28. Rxd8 {[%clk 0:01:09.3]} 28... Rxd8 {[%clk
0:00:14.8]} 29. Bxf7 {[%clk 0:01:08.8]} 29... Nf6 {[%clk 0:00:13.3]} 30. e4
{[%clk 0:01:04.8]} 30... Qd4+ {[%clk 0:00:12.1]} 31. Kh1 {[%clk 0:01:01.5]}
31... Nxe4 {[%clk 0:00:12.5]} 32. Qe2 {[%clk 0:00:53.2]} 32... Nf6 {[%clk
0:00:09.8]} 33. h3 {[%clk 0:00:46.9]} 33... Qe4 {[%clk 0:00:05.9]} 34. Qa6
{[%clk 0:00:43.3]} 34... Qe7 {[%clk 0:00:02.9]} 35. Bc4 {[%clk 0:00:41.6]} 35...
Ne4 {[%clk 0:00:02.7]} 36. Kh2 {[%clk 0:00:37.8]} 36... Nd2 {[%clk 0:00:03]} 37.
Rf2 {[%clk 0:00:31.6]} 37... Qe3 {[%clk 0:00:01.5]} 38. Rf1 {[%clk 0:00:09.2]}
38... Nxf1+ {[%clk 0:00:01.5]} 39. Bxf1 {[%clk 0:00:09.8]} 39... Qxf4+ {[%clk
0:00:02.1]} 40. Kg1 {[%clk 0:00:10.2]} 40... Qe3+ {[%clk 0:00:02.3]} 41. Kh2
{[%clk 0:00:09]} 41... Qf4+ {[%clk 0:00:02.8]} 42. Kg1 {[%clk 0:00:09.4]} 42...
Rd1 {[%clk 0:00:02.7]} 43. Qc8+ {[%clk 0:00:08.7]} 43... Kh7 {[%clk 0:00:03.2]}
44. Qa6 {[%clk 0:00:07]} 44... Qxf1+ {[%clk 0:00:03.5]} 45. Qxf1 {[%clk
0:00:06.8]} 45... Rxf1+ {[%clk 0:00:04.4]} 46. Kxf1 {[%clk 0:00:07.7]} 46... Kg6
{[%clk 0:00:05.2]} 47. Ke2 {[%clk 0:00:08.3]} 47... Kf5 {[%clk 0:00:06.1]} 48.
Kd2 {[%clk 0:00:09.2]} 48... Ke5 {[%clk 0:00:06.9]} 49. Kc3 {[%clk 0:00:09.8]}
49... Kf4 {[%clk 0:00:07.5]} 50. Kc4 {[%clk 0:00:10.6]} 50... Kg3 {[%clk
0:00:08.2]} 51. Kb5 {[%clk 0:00:11.5]} 51... Kxg2 {[%clk 0:00:08.8]} 52. Ka6
{[%clk 0:00:12.4]} 52... c4 {[%clk 0:00:09.2]} 53. Kxa7 {[%clk 0:00:13.3]} 53...
c3 {[%clk 0:00:10.1]} 54. Kxb6 {[%clk 0:00:14.1]} 54... c2 {[%clk 0:00:11]} 55.
a4 {[%clk 0:00:14.7]} 55... c1=Q {[%clk 0:00:11.9]} 56. a5 {[%clk 0:00:15.6]}
56... Qa3 {[%clk 0:00:12.2]} 57. a6 {[%clk 0:00:16.5]} 57... Kxh3 {[%clk
0:00:12.8]} 58. Ka7 {[%clk 0:00:17.4]} 58... Kg4 {[%clk 0:00:13.4]} 59. Kb7
{[%clk 0:00:17.9]} 59... Qxa6+ {[%clk 0:00:14]} 60. Kxa6 {[%clk 0:00:18.2]}
60... h5 {[%clk 0:00:14.3]} 61. Ka7 {[%clk 0:00:19.1]} 61... h4 {[%clk
0:00:15.2]} 0-1

[Event "Early-Titled-Tuesday-Blitz-June-18-2024"]
[Site "Chess.com"]
[Date "2024.06.18"]
[Round "4"]
[White "harkerchess"]
[Black "LeoLV10"]
[Result "0-1"]
[WhiteElo "2359"]
[BlackElo "2548"]
[TimeControl "180+1"]
[EndTime "8:41:55 PDT"]
[Termination "LeoLV10 won by resignation"]

1. d4 {[%clk 0:03:00.9]} 1... Nf6 {[%clk 0:02:52.4]} 2. Bg5 {[%clk 0:03:00.3]}
2... Ne4 {[%clk 0:02:51.1]} 3. Bf4 {[%clk 0:03:00.1]} 3... d5 {[%clk 0:02:50.6]}
4. Nd2 {[%clk 0:02:58.1]} 4... Nxd2 {[%clk 0:02:50.5]} 5. Qxd2 {[%clk 0:02:59]}
5... c6 {[%clk 0:02:51]} 6. e3 {[%clk 0:02:58.3]} 6... Bf5 {[%clk 0:02:49.7]} 7.
Bd3 {[%clk 0:02:57.5]} 7... Bxd3 {[%clk 0:02:36.7]} 8. Qxd3 {[%clk 0:02:56.2]}
8... Nd7 {[%clk 0:02:37.4]} 9. Nf3 {[%clk 0:02:56.2]} 9... e6 {[%clk 0:02:36.6]}
10. O-O {[%clk 0:02:55.2]} 10... Be7 {[%clk 0:02:36.7]} 11. c4 {[%clk
0:02:54.1]} 11... O-O {[%clk 0:02:36.5]} 12. c5 {[%clk 0:02:54.2]} 12... Re8
{[%clk 0:02:34.7]} 13. b4 {[%clk 0:02:53.1]} 13... a6 {[%clk 0:02:33.8]} 14. a4
{[%clk 0:02:52.7]} 14... f6 {[%clk 0:02:34.4]} 15. b5 {[%clk 0:02:50.5]} 15...
e5 {[%clk 0:02:26.1]} 16. bxc6 {[%clk 0:02:38.3]} 16... bxc6 {[%clk 0:02:25.9]}
17. dxe5 {[%clk 0:02:36.7]} 17... fxe5 {[%clk 0:02:26.1]} 18. Nxe5 {[%clk
0:02:35.7]} 18... Nxe5 {[%clk 0:02:24.5]} 19. Bxe5 {[%clk 0:02:35.2]} 19... Bxc5
{[%clk 0:02:25.4]} 20. Bxg7 {[%clk 0:02:27.1]} 20... Bxe3 {[%clk 0:02:16.3]} 21.
fxe3 {[%clk 0:02:12.8]} 21... Kxg7 {[%clk 0:02:16.6]} 22. Qc3+ {[%clk 0:02:13]}
22... Kg8 {[%clk 0:02:14.2]} 23. Rf3 {[%clk 0:01:59.9]} 23... Re6 {[%clk
0:02:11.4]} 24. Raf1 {[%clk 0:01:58.9]} 24... Qe7 {[%clk 0:02:04.2]} 25. Qd3
{[%clk 0:01:40.9]} 25... Rg6 {[%clk 0:01:51.6]} 26. Qf5 {[%clk 0:01:29.6]} 26...
Re8 {[%clk 0:01:48.8]} 27. Qh3 {[%clk 0:01:25.5]} 27... Qe6 {[%clk 0:01:42.2]}
28. Qh5 {[%clk 0:01:19.9]} 28... Rh6 {[%clk 0:01:25.8]} 29. Rg3+ {[%clk
0:01:11.2]} 29... Kh8 {[%clk 0:01:23.3]} 30. Qf3 {[%clk 0:01:10.8]} 30... Rg6
{[%clk 0:01:20.6]} 31. Rh3 {[%clk 0:01:09]} 31... Kg8 {[%clk 0:01:17.1]} 32. Qh5
{[%clk 0:01:06.4]} 32... Re7 {[%clk 0:01:13.8]} 33. Qe2 {[%clk 0:01:01.7]} 33...
Re8 {[%clk 0:01:10.6]} 34. Qxa6 {[%clk 0:01:00.4]} 34... Qxh3 {[%clk 0:01:05.5]}
35. g3 {[%clk 0:00:48.1]} 35... Qe6 {[%clk 0:00:49.9]} 36. Re1 {[%clk 0:00:45]}
36... d4 {[%clk 0:00:44]} 37. e4 {[%clk 0:00:44.8]} 37... c5 {[%clk 0:00:41.8]}
38. Qa7 {[%clk 0:00:42.9]} 38... Qb6 {[%clk 0:00:35.5]} 39. Qd7 {[%clk
0:00:41.3]} 39... Qc6 {[%clk 0:00:35.6]} 40. Qf5 {[%clk 0:00:40.3]} 40... Qxa4
{[%clk 0:00:32]} 41. Qd5+ {[%clk 0:00:35.7]} 41... Rge6 {[%clk 0:00:32.4]} 42.
Qxc5 {[%clk 0:00:33.8]} 42... Qd7 {[%clk 0:00:29.7]} 43. e5 {[%clk 0:00:31.3]}
43... d3 {[%clk 0:00:29.4]} 44. Rd1 {[%clk 0:00:25.3]} 44... Rxe5 {[%clk
0:00:28.1]} 45. Qc4+ {[%clk 0:00:25.4]} 45... Qd5 {[%clk 0:00:28.7]} 46. Qg4+
{[%clk 0:00:25.2]} 46... Rg5 {[%clk 0:00:28]} 47. Rxd3 {[%clk 0:00:21.6]} 47...
Qc5+ {[%clk 0:00:27]} 48. Qd4 {[%clk 0:00:20.5]} 48... Qxd4+ {[%clk 0:00:25.2]}
49. Rxd4 {[%clk 0:00:20.5]} 49... Re1+ {[%clk 0:00:26]} 50. Kf2 {[%clk
0:00:20.5]} 50... Ra1 {[%clk 0:00:26.9]} 51. Rd8+ {[%clk 0:00:20.2]} 51... Kg7
{[%clk 0:00:27.4]} 52. Rd7+ {[%clk 0:00:21.1]} 52... Kh6 {[%clk 0:00:27.9]} 53.
Rd6+ {[%clk 0:00:21.3]} 53... Rg6 {[%clk 0:00:28.5]} 54. Rd2 {[%clk 0:00:20.7]}
54... Rga6 {[%clk 0:00:28.8]} 55. Rd5 {[%clk 0:00:19.8]} 55... R6a2+ {[%clk
0:00:28.2]} 56. Kf3 {[%clk 0:00:20.3]} 56... Rf1+ {[%clk 0:00:27.6]} 57. Kg4
{[%clk 0:00:20.4]} 57... Ra4+ {[%clk 0:00:27.8]} 58. Kh3 {[%clk 0:00:20.2]}
58... Rf6 {[%clk 0:00:28.1]} 59. Rd2 {[%clk 0:00:17.1]} 59... Kg6 {[%clk
0:00:27.6]} 60. Rb2 {[%clk 0:00:17.1]} 60... h5 {[%clk 0:00:28.2]} 61. Rb3
{[%clk 0:00:16.4]} 61... Ra2 {[%clk 0:00:28.3]} 62. Re3 {[%clk 0:00:15.6]} 62...
Rff2 {[%clk 0:00:28.1]} 63. g4 {[%clk 0:00:14.7]} 63... Rxh2+ {[%clk 0:00:27.7]}
64. Kg3 {[%clk 0:00:15.2]} 64... h4+ {[%clk 0:00:25.6]} 65. Kf4 {[%clk
0:00:15.1]} 65... Ra4+ {[%clk 0:00:25.8]} 66. Kf3 {[%clk 0:00:14.8]} 66... Rh3+
{[%clk 0:00:26.2]} 0-1

[Event "Early-Titled-Tuesday-Blitz-June-18-2024"]
[Site "Chess.com"]
[Date "2024.06.18"]
[Round "4"]
[White "EvgenyBurmakin"]
[Black "Korchmar_Vasiliy"]
[Result "0-1"]
[WhiteElo "2393"]
[BlackElo "2661"]
[TimeControl "180+1"]
[EndTime "8:41:57 PDT"]
[Termination "Korchmar_Vasiliy won by checkmate"]

1. e4 {[%clk 0:03:00.9]} 1... e5 {[%clk 0:03:00.2]} 2. Nf3 {[%clk 0:03:00.2]}
2... Nf6 {[%clk 0:03:00.8]} 3. Nxe5 {[%clk 0:02:57.5]} 3... d6 {[%clk
0:02:59.8]} 4. Nf3 {[%clk 0:02:57.6]} 4... Nxe4 {[%clk 0:02:59.8]} 5. d4 {[%clk
0:02:57.6]} 5... d5 {[%clk 0:02:54.9]} 6. Bd3 {[%clk 0:02:57.3]} 6... Be7 {[%clk
0:02:54.9]} 7. O-O {[%clk 0:02:56.9]} 7... O-O {[%clk 0:02:55]} 8. c4 {[%clk
0:02:55.9]} 8... Bg4 {[%clk 0:02:52.2]} 9. Nc3 {[%clk 0:02:45.9]} 9... Nxc3
{[%clk 0:02:46]} 10. bxc3 {[%clk 0:02:46.8]} 10... dxc4 {[%clk 0:02:46.4]} 11.
Bxc4 {[%clk 0:02:45]} 11... Nd7 {[%clk 0:02:46.9]} 12. Re1 {[%clk 0:02:23.2]}
12... Bd6 {[%clk 0:02:44.5]} 13. Qd3 {[%clk 0:02:21.2]} 13... h6 {[%clk
0:02:23.5]} 14. Bb3 {[%clk 0:02:16.2]} 14... Nc5 {[%clk 0:02:21.3]} 15. Qe3
{[%clk 0:01:59.3]} 15... Nxb3 {[%clk 0:02:11.2]} 16. axb3 {[%clk 0:02:00.2]}
16... Re8 {[%clk 0:01:50.6]} 17. Qxe8+ {[%clk 0:01:52.6]} 17... Qxe8 {[%clk
0:01:51.5]} 18. Rxe8+ {[%clk 0:01:51.7]} 18... Rxe8 {[%clk 0:01:52.4]} 19. Be3
{[%clk 0:01:44.9]} 19... a6 {[%clk 0:01:49.6]} 20. Nd2 {[%clk 0:01:35.1]} 20...
c6 {[%clk 0:01:19.2]} 21. Nc4 {[%clk 0:01:17.3]} 21... Bc7 {[%clk 0:01:18.7]}
22. Na5 {[%clk 0:00:53.1]} 22... Bc8 {[%clk 0:01:18.7]} 23. b4 {[%clk
0:00:34.1]} 23... f5 {[%clk 0:01:18.9]} 24. Re1 {[%clk 0:00:21.7]} 24... Kf7
{[%clk 0:01:02.2]} 25. Bd2 {[%clk 0:00:21.3]} 25... Rxe1+ {[%clk 0:01:03.1]} 26.
Bxe1 {[%clk 0:00:21.4]} 26... Ke6 {[%clk 0:01:00.4]} 27. c4 {[%clk 0:00:16.3]}
27... f4 {[%clk 0:00:32]} 28. Kf1 {[%clk 0:00:15.2]} 28... Kf5 {[%clk
0:00:31.5]} 29. Ke2 {[%clk 0:00:14.5]} 29... Ke4 {[%clk 0:00:26.5]} 30. Bc3
{[%clk 0:00:14.6]} 30... f3+ {[%clk 0:00:26.9]} 31. gxf3+ {[%clk 0:00:14.9]}
31... Kf5 {[%clk 0:00:27.5]} 32. h3 {[%clk 0:00:14.2]} 32... g6 {[%clk 0:00:22]}
33. Kd3 {[%clk 0:00:11.4]} 33... h5 {[%clk 0:00:19.8]} 34. Bd2 {[%clk
0:00:11.3]} 34... h4 {[%clk 0:00:15]} 35. d5 {[%clk 0:00:11.2]} 35... cxd5
{[%clk 0:00:14.6]} 36. cxd5 {[%clk 0:00:12.1]} 36... Ke5 {[%clk 0:00:13.8]} 37.
Kc4 {[%clk 0:00:12.3]} 37... Bxa5 {[%clk 0:00:08.3]} 38. bxa5 {[%clk 0:00:12.3]}
38... Bxh3 {[%clk 0:00:09.2]} 39. Kc5 {[%clk 0:00:10.5]} 39... Bc8 {[%clk
0:00:04.8]} 40. Kb6 {[%clk 0:00:08.2]} 40... h3 {[%clk 0:00:04.4]} 41. Bc3+
{[%clk 0:00:06.1]} 41... Kxd5 {[%clk 0:00:03.7]} 42. Kc7 {[%clk 0:00:06]} 42...
Bf5 {[%clk 0:00:03.7]} 43. Kxb7 {[%clk 0:00:05.9]} 43... h2 {[%clk 0:00:04.1]}
44. Kxa6 {[%clk 0:00:06.6]} 44... h1=Q {[%clk 0:00:04.7]} 45. Kb7 {[%clk
0:00:07.5]} 45... Bd3 {[%clk 0:00:05]} 46. a6 {[%clk 0:00:08.4]} 46... Bxa6+
{[%clk 0:00:04.9]} 47. Kxa6 {[%clk 0:00:08.7]} 47... Qxf3 {[%clk 0:00:05.6]} 48.
Ba5 {[%clk 0:00:07.3]} 48... Qxf2 {[%clk 0:00:05.4]} 49. Bb6 {[%clk 0:00:08.2]}
49... Qf3 {[%clk 0:00:05.6]} 50. Kb7 {[%clk 0:00:09.1]} 50... g5 {[%clk
0:00:06.1]} 51. Kc7 {[%clk 0:00:10]} 51... g4 {[%clk 0:00:06.7]} 52. Ba7 {[%clk
0:00:10.7]} 52... g3 {[%clk 0:00:07.3]} 53. Bb6 {[%clk 0:00:11.6]} 53... g2
{[%clk 0:00:07.9]} 54. Kb7 {[%clk 0:00:12.5]} 54... Qf1 {[%clk 0:00:08.4]} 55.
Kc7 {[%clk 0:00:13.4]} 55... g1=Q {[%clk 0:00:09]} 56. Ba7 {[%clk 0:00:14.3]}
56... Qxa7+ {[%clk 0:00:08.5]} 57. Kc8 {[%clk 0:00:14.5]} 57... Qf8# {[%clk
0:00:08.7]} 0-1

[Event "Early-Titled-Tuesday-Blitz-June-18-2024"]
[Site "Chess.com"]
[Date "2024.06.18"]
[Round "4"]
[White "Cxrjs"]
[Black "SaraBlackPanther"]
[Result "0-1"]
[WhiteElo "2516"]
[BlackElo "2713"]
[TimeControl "180+1"]
[EndTime "8:41:58 PDT"]
[Termination "SaraBlackPanther won on time"]

1. e4 {[%clk 0:03:00.9]} 1... c5 {[%clk 0:02:58]} 2. Nf3 {[%clk 0:03:01]} 2...
g6 {[%clk 0:02:58.3]} 3. d4 {[%clk 0:03:00.9]} 3... cxd4 {[%clk 0:02:59.2]} 4.
Nxd4 {[%clk 0:03:01.4]} 4... Bg7 {[%clk 0:02:59.7]} 5. c4 {[%clk 0:03:01.9]}
5... Nc6 {[%clk 0:02:59.8]} 6. Be3 {[%clk 0:03:01]} 6... Qb6 {[%clk 0:03:00.4]}
7. Nb5 {[%clk 0:02:59.7]} 7... Qa5+ {[%clk 0:02:59.8]} 8. N5c3 {[%clk 0:02:57]}
8... Nf6 {[%clk 0:02:57]} 9. Nd2 {[%clk 0:02:45.8]} 9... O-O {[%clk 0:02:55.6]}
10. Be2 {[%clk 0:02:42.9]} 10... d6 {[%clk 0:02:54.4]} 11. O-O {[%clk
0:02:36.9]} 11... Nd7 {[%clk 0:02:52.5]} 12. Nb3 {[%clk 0:02:25.1]} 12... Qd8
{[%clk 0:02:51.3]} 13. Rc1 {[%clk 0:02:06.1]} 13... a5 {[%clk 0:02:42.5]} 14.
Na4 {[%clk 0:01:51]} 14... Rb8 {[%clk 0:02:25.3]} 15. Qd2 {[%clk 0:01:36.1]}
15... b6 {[%clk 0:02:13.7]} 16. Rfd1 {[%clk 0:01:29.2]} 16... Nc5 {[%clk
0:02:07.6]} 17. Nbxc5 {[%clk 0:00:59.7]} 17... bxc5 {[%clk 0:02:08.5]} 18. b3
{[%clk 0:00:58.4]} 18... Be6 {[%clk 0:02:02.6]} 19. Nc3 {[%clk 0:00:53.8]} 19...
Nd4 {[%clk 0:01:55.8]} 20. Bf1 {[%clk 0:00:50.1]} 20... f5 {[%clk 0:01:48.7]}
21. exf5 {[%clk 0:00:45.7]} 21... gxf5 {[%clk 0:01:47.7]} 22. Bh6 {[%clk
0:00:41]} 22... Bxh6 {[%clk 0:01:38.4]} 23. Qxh6 {[%clk 0:00:41.9]} 23... Rf6
{[%clk 0:01:38.8]} 24. Qh4 {[%clk 0:00:36.8]} 24... Rg6 {[%clk 0:01:35.6]} 25.
Rxd4 {[%clk 0:00:36.6]} 25... cxd4 {[%clk 0:01:34.5]} 26. Qxd4 {[%clk
0:00:37.3]} 26... Bf7 {[%clk 0:01:33.3]} 27. Re1 {[%clk 0:00:36.6]} 27... e5
{[%clk 0:01:32.4]} 28. Qd3 {[%clk 0:00:33]} 28... Qg5 {[%clk 0:01:29.5]} 29. Nd5
{[%clk 0:00:30.4]} 29... Kh8 {[%clk 0:01:27.1]} 30. Qc3 {[%clk 0:00:27.1]} 30...
Bxd5 {[%clk 0:01:15.7]} 31. cxd5 {[%clk 0:00:27]} 31... Rbg8 {[%clk 0:01:10.9]}
32. Qxa5 {[%clk 0:00:23.5]} 32... e4 {[%clk 0:00:51.9]} 33. Qc3+ {[%clk
0:00:22.5]} 33... Qf6 {[%clk 0:00:52.5]} 34. Qxf6+ {[%clk 0:00:16.8]} 34... Rxf6
{[%clk 0:00:53.4]} 35. a4 {[%clk 0:00:13.7]} 35... Rc8 {[%clk 0:00:51.1]} 36.
Bc4 {[%clk 0:00:12.8]} 36... Kg7 {[%clk 0:00:49.5]} 37. a5 {[%clk 0:00:12.9]}
37... Rf7 {[%clk 0:00:48.7]} 38. a6 {[%clk 0:00:12.9]} 38... Kf6 {[%clk
0:00:46.2]} 39. Ra1 {[%clk 0:00:13.2]} 39... Ra7 {[%clk 0:00:45.7]} 40. f4
{[%clk 0:00:10.1]} 40... h5 {[%clk 0:00:38.1]} 41. Kf2 {[%clk 0:00:08.6]} 41...
h4 {[%clk 0:00:38.5]} 42. g3 {[%clk 0:00:06.9]} 42... hxg3+ {[%clk 0:00:37.2]}
43. hxg3 {[%clk 0:00:07.5]} 43... Rh8 {[%clk 0:00:37.9]} 44. Ra4 {[%clk
0:00:04.1]} 44... Rh2+ {[%clk 0:00:36.2]} 45. Kg1 {[%clk 0:00:04.1]} 45... Rc2
{[%clk 0:00:25.9]} 46. Rb4 {[%clk 0:00:04.5]} 46... e3 {[%clk 0:00:20.6]} 47.
Rb7 {[%clk 0:00:02.7]} 47... Ra8 {[%clk 0:00:20.8]} 48. Rd7 {[%clk 0:00:02.4]}
48... Re8 {[%clk 0:00:12.1]} 49. Rxd6+ {[%clk 0:00:03]} 49... Kf7 {[%clk
0:00:11.1]} 50. Rd7+ {[%clk 0:00:02.7]} 50... Kf8 {[%clk 0:00:11]} 51. d6 {[%clk
0:00:02]} 51... Rxc4 {[%clk 0:00:10.8]} 52. bxc4 {[%clk 0:00:01]} 52... e2
{[%clk 0:00:11.5]} 0-1

[Event "Early-Titled-Tuesday-Blitz-June-18-2024"]
[Site "Chess.com"]
[Date "2024.06.18"]
[Round "4"]
[White "elizabethcastaneda"]
[Black "dealshark"]
[Result "0-1"]
[WhiteElo "2021"]
[BlackElo "2455"]
[TimeControl "180+1"]
[EndTime "8:41:59 PDT"]
[Termination "dealshark won on time"]

1. e4 {[%clk 0:02:59.6]} 1... c5 {[%clk 0:02:59.9]} 2. Nf3 {[%clk 0:02:59.4]}
2... d6 {[%clk 0:02:58.3]} 3. d4 {[%clk 0:02:59.3]} 3... cxd4 {[%clk 0:02:59.2]}
4. Nxd4 {[%clk 0:02:59.3]} 4... Nf6 {[%clk 0:02:59.5]} 5. Nc3 {[%clk 0:02:59.3]}
5... a6 {[%clk 0:02:59.9]} 6. Be3 {[%clk 0:02:57.4]} 6... e5 {[%clk 0:02:59.5]}
7. Nb3 {[%clk 0:02:56.6]} 7... Be7 {[%clk 0:02:58.6]} 8. f3 {[%clk 0:02:42.4]}
8... O-O {[%clk 0:02:58.2]} 9. Qd2 {[%clk 0:02:41.8]} 9... b5 {[%clk 0:02:57.3]}
10. g4 {[%clk 0:02:35.5]} 10... b4 {[%clk 0:02:53.5]} 11. Na4 {[%clk 0:02:29.8]}
11... Nc6 {[%clk 0:02:37.3]} 12. Nb6 {[%clk 0:02:12.6]} 12... Rb8 {[%clk
0:02:36.5]} 13. g5 {[%clk 0:02:12.4]} 13... Nd7 {[%clk 0:02:23.7]} 14. Nd5
{[%clk 0:02:12]} 14... a5 {[%clk 0:02:18.8]} 15. h4 {[%clk 0:02:02.9]} 15... a4
{[%clk 0:02:18.2]} 16. Nc1 {[%clk 0:02:01.4]} 16... f5 {[%clk 0:02:05.2]} 17.
Bc4 {[%clk 0:01:50.9]} 17... Kh8 {[%clk 0:02:04.7]} 18. g6 {[%clk 0:01:32.7]}
18... f4 {[%clk 0:02:03]} 19. Bf2 {[%clk 0:01:30.3]} 19... h6 {[%clk 0:02:02.7]}
20. Ne2 {[%clk 0:01:15.4]} 20... Nf6 {[%clk 0:02:02.1]} 21. Nxe7 {[%clk
0:01:09.4]} 21... Qxe7 {[%clk 0:01:59.1]} 22. Rd1 {[%clk 0:01:08.4]} 22... Rd8
{[%clk 0:01:56.2]} 23. c3 {[%clk 0:00:58.7]} 23... Be6 {[%clk 0:01:51.4]} 24.
Bd5 {[%clk 0:00:40.8]} 24... Bxd5 {[%clk 0:01:32.4]} 25. exd5 {[%clk 0:00:40.4]}
25... bxc3 {[%clk 0:01:32.4]} 26. Nxc3 {[%clk 0:00:39.8]} 26... Nb4 {[%clk
0:01:28.7]} 27. a3 {[%clk 0:00:36.4]} 27... Na6 {[%clk 0:01:10.8]} 28. h5 {[%clk
0:00:32.8]} 28... e4 {[%clk 0:00:44.5]} 29. Bh4 {[%clk 0:00:18.8]} 29... exf3+
{[%clk 0:00:42.3]} 30. Kf2 {[%clk 0:00:18.8]} 30... Ng4+ {[%clk 0:00:28.9]} 31.
Kxf3 {[%clk 0:00:18.5]} 31... Ne5+ {[%clk 0:00:23.7]} 32. Kg2 {[%clk 0:00:17.3]}
32... f3+ {[%clk 0:00:23]} 33. Kf1 {[%clk 0:00:16.3]} 33... Qd7 {[%clk
0:00:11.1]} 34. Bxd8 {[%clk 0:00:16.4]} 34... Rxd8 {[%clk 0:00:11.3]} 35. Ne4
{[%clk 0:00:15.1]} 35... Rf8 {[%clk 0:00:08.4]} 36. Qa5 {[%clk 0:00:11.6]} 36...
Qg4 {[%clk 0:00:06.9]} 37. Nf2 {[%clk 0:00:06.3]} 37... Qg2+ {[%clk 0:00:06.9]}
38. Ke1 {[%clk 0:00:06.8]} 38... Re8 {[%clk 0:00:06.7]} 39. Qb5 {[%clk
0:00:04.8]} 39... Nd7+ {[%clk 0:00:05.8]} 40. Kd2 {[%clk 0:00:01.8]} 40... Qxf2+
{[%clk 0:00:06.2]} 41. Kc1 {[%clk 0:00:01.6]} 41... Rc8+ {[%clk 0:00:05.6]} 42.
Kb1 {[%clk 0:00:02.2]} 42... Qc2+ {[%clk 0:00:06]} 43. Ka1 {[%clk 0:00:02.7]}
43... Ndc5 {[%clk 0:00:05]} 44. Rc1 {[%clk 0:00:02.1]} 44... Nb3+ {[%clk
0:00:04.6]} 45. Ka2 {[%clk 0:00:02.6]} 45... Nxc1+ {[%clk 0:00:04.6]} 46. Rxc1
{[%clk 0:00:02.9]} 46... Qxc1 {[%clk 0:00:03.1]} 0-1